fUSD/lending_fUSD_20240317
["ID","MTS","AMOUNT","RATE_DAILY","PERIOD"]
[319293465,1710641461276,-641.1,0.00015479,2]
[319293466,1710641461286,-500.0,0.00015479,2]
[319293467,1710641461301,-641.1,0.00015479,2]
[319293468,1710641461311,-641.28426737,0.00015479,2]
[319293469,1710641461322,-1369.94,0.00015479,2]
[319293470,1710641461333,-1369.94,0.00015479,2]
[319293471,1710641461343,-1369.94,0.00015479,2]
[319293472,1710641461354,-1369.94,0.00015479,2]
[319293473,1710641461364,-1369.94,0.00015479,2]
[319293474,1710641461376,-151.0,0.00015479,2]
[319293475,1710641461386,-4077.83,0.00015479,2]
[319293476,1710641461396,-4077.83,0.00015479,2]
[319293477,1710641461406,-4077.83,0.00015479,2]
[319293478,1710641461416,-4077.83,0.00015479,2]
[319293479,1710641461426,-4077.83,0.00015479,2]
[319293480,1710641461435,-4077.83,0.00015479,2]
[319293481,1710641461447,-4077.83,0.00015479,2]
[319293482,1710641461457,-4077.83,0.00015479,2]
[319293483,1710641461467,-4078.02721721,0.00015479,2]
[319293484,1710641461477,-500.0,0.00015479,2]
[319293485,1710641461487,-500.0,0.00015479,2]
[319293486,1710641461497,-500.0,0.00015479,2]
[319293487,1710641461507,-500.0,0.00015479,2]
[319293488,1710641461517,-932.6,0.00015479,2]
[319293489,1710641461526,-500.0,0.00015479,2]
[319293490,1710641461536,-932.6,0.00015479,2]
[319293491,1710641461546,-500.0,0.00015479,2]
[319293492,1710641461557,-500.0,0.00015479,2]
[319293493,1710641461567,-932.6,0.00015479,2]
[319293494,1710641461578,-500.0,0.00015479,2]
[319293495,1710641461587,-500.0,0.00015479,2]
[319293496,1710641461597,-932.6,0.00015479,2]
[319293497,1710641461606,-500.0,0.00015479,2]
[319293498,1710641461615,-500.0,0.00015479,2]
[319293499,1710641461625,-586.56,0.00015479,2]
[319293500,1710641461634,-932.6,0.00015479,2]
[319293501,1710641461644,-156.151974,0.00015479,2]
[319293502,1710641461654,-151.940943,0.00015479,2]
[319293503,1710641461664,-500.0,0.00015479,2]
[319293504,1710641461673,-500.0,0.00015479,2]
[319293505,1710641461682,-500.0,0.00015479,2]
[319293506,1710641461694,-500.0,0.00015479,2]
[319293507,1710641461703,-500.0,0.00015479,2]
[319293508,1710641461713,-500.0,0.00015479,2]
[319293509,1710641461722,-500.0,0.00015479,2]
[319293510,1710641461732,-450.81621261,0.00015479,2]
[319293511,1710641461742,-1690.36,0.00015479,2]
[319293512,1710641461752,-1690.36,0.00015479,2]
[319293513,1710641461764,-1690.36,0.00015479,2]
[319293514,1710641461776,-1690.36,0.00015479,2]
[319293515,1710641461786,-1690.36,0.00015479,2]
[319293516,1710641461798,-1690.36,0.00015479,2]
[319293517,1710641461807,-1690.36,0.00015479,2]
[319293518,1710641461817,-1690.36,0.00015479,2]
[319293519,1710641461827,-1690.39736755,0.00015479,2]
[319293520,1710641461837,-500.0,0.00015479,2]
[319293521,1710641461847,-1092.98,0.00015479,2]
[319293522,1710641461857,-500.0,0.00015479,2]
[319293523,1710641461868,-1092.98,0.00015479,2]
[319293524,1710641461878,-201.6,0.00015479,2]
[319293525,1710641461888,-1092.98,0.00015479,2]
[319293526,1710641461899,-1092.98,0.00015479,2]
[319293527,1710641461908,-1092.98,0.00015479,2]
[319293528,1710641461919,-1092.98,0.00015479,2]
[319293529,1710641461929,-1092.98,0.00015479,2]
[319293530,1710641461939,-1092.98,0.00015479,2]
[319293531,1710641461949,-1093.01927328,0.00015479,2]
[319293532,1710641461959,-1909.813246,0.00015479,2]
[319293533,1710641461970,-933.81,0.00015479,2]
[319293534,1710641461980,-151.0,0.00015479,2]
[319293535,1710641461990,-933.81,0.00015479,2]
[319293536,1710641462001,-933.81,0.00015479,2]
[319293537,1710641462012,-933.81,0.00015479,2]
[319293538,1710641462022,-933.81,0.00015479,2]
[319293539,1710641462032,-933.81,0.00015479,2]
[319293540,1710641462042,-1909.813246,0.00015479,2]
[319293541,1710641462051,-933.81,0.00015479,2]
[319293542,1710641462060,-933.81,0.00015479,2]
[319293543,1710641462069,-933.81008045,0.00015479,2]
[319293544,1710641462078,-500.0,0.00015479,2]
[319293545,1710641462088,-151.056935,0.00015479,2]
[319293546,1710641462098,-500.0,0.00015479,2]
[319293547,1710641462108,-500.0,0.00015479,2]
[319293548,1710641462117,-500.0,0.00015479,2]
[319293549,1710641462127,-500.0,0.00015479,2]
[319293550,1710641462137,-500.0,0.00015479,2]
[319293551,1710641462147,-500.0,0.00015479,2]
[319293552,1710641462157,-500.0,0.00015479,2]
[319293553,1710641462166,-500.0,0.00015479,2]
[319293554,1710641462176,-500.0,0.00015479,2]
[319293555,1710641462186,-1227.85,0.00015479,2]
[319293556,1710641462199,-1227.85,0.00015479,2]
[319293557,1710641462209,-1227.85,0.00015479,2]
[319293558,1710641462219,-1227.85,0.00015479,2]
[319293559,1710641462228,-1227.85,0.00015479,2]
[319293560,1710641462238,-500.0,0.00015479,2]
[319293561,1710641462248,-500.0,0.00015479,2]
[319293562,1710641462258,-500.0,0.00015479,2]
[319293563,1710641462267,-500.0,0.00015479,2]
[319293564,1710641462278,-500.0,0.00015479,2]
[319293565,1710641462288,-664.62,0.00015479,2]
[319293566,1710641462300,-664.62,0.00015479,2]
[319293567,1710641462310,-664.62,0.00015479,2]
[319293568,1710641462320,-664.62,0.00015479,2]
[319293569,1710641462331,-664.62,0.00015479,2]
[319293570,1710641462341,-151.0,0.00015479,2]
[319293571,1710641462351,-500.0,0.00015479,2]
[319293572,1710641462361,-420.51,0.00015479,2]
[319293573,1710641462372,-608.61,0.00015479,2]
[319293574,1710641462381,-608.61,0.00015479,2]
[319293575,1710641462403,-608.61,0.00015479,2]
[319293576,1710641462450,-608.61,0.00015479,2]
[319293577,1710641462462,-608.61,0.00015479,2]
[319293578,1710641462473,-608.61,0.00015479,2]
[319293579,1710641462483,-608.61,0.00015479,2]
[319293580,1710641462494,-608.61,0.00015479,2]
[319293581,1710641462505,-608.65771187,0.00015479,2]
[319293582,1710641462516,-606.49,0.00015479,2]
[319293583,1710641462529,-606.49,0.00015479,2]
[319293584,1710641462540,-606.49,0.00015479,2]
[319293585,1710641462552,-1632.24,0.00015479,2]
[319293586,1710641462564,-606.49,0.00015479,2]
[319293587,1710641462577,-1632.24,0.00015479,2]
[319293588,1710641462588,-606.49,0.00015479,2]
[319293589,1710641462600,-1632.24,0.00015479,2]
[319293590,1710641462611,-606.49,0.00015479,2]
[319293591,1710641462625,-1632.24,0.00015479,2]
[319293592,1710641462636,-606.49,0.00015479,2]
[319293593,1710641462646,-1632.24,0.00015479,2]
[319293594,1710641462655,-606.49,0.00015479,2]
[319293595,1710641462666,-606.7,0.00015479,2]
[319293596,1710641462677,-500.0,0.00015479,2]
[319293597,1710641462688,-500.0,0.00015479,2]
[319293598,1710641462699,-500.0,0.00015479,2]
[319293599,1710641462710,-500.0,0.00015479,2]
[319293600,1710641462721,-500.0,0.00015479,2]
[319293601,1710641462730,-500.0,0.00015479,2]
[319293602,1710641462740,-558.92276274,0.00015479,2]
[319293603,1710641462750,-500.0,0.00015479,2]
[319293604,1710641462761,-399.8379961,0.00015479,2]
[319293605,1710641462772,-151.0,0.00015479,2]
[319293606,1710641462783,-1242467.20347723,0.0001548,2]
[319293607,1710641462794,-151.0,0.0001548,2]
[319293608,1710641462806,-153.2407,0.0001548,2]
[319293609,1710641462816,-154.547808,0.0001548,2]
[319293610,1710641462826,-151.0,0.0001548,2]
[319293611,1710641462835,-152.628548,0.0001548,2]
[319293612,1710641462846,-262.493537,0.0001548,2]
[319293613,1710641462856,-151.0,0.0001548,2]
[319293614,1710641462867,-151.0,0.0001548,2]
[319293615,1710641462878,-151.0,0.0001548,2]
[319293616,1710641462889,-151.0,0.0001548,2]
[319293617,1710641462899,-151.0,0.0001548,2]
[319293618,1710641462909,-151.0,0.0001548,2]
[319293619,1710641462920,-151.0,0.0001548,2]
[319293620,1710641462930,-151.0,0.0001548,2]
[319293621,1710641462943,-162.553292,0.0001548,2]
[319293622,1710641462953,-162.553292,0.0001548,2]
[319293623,1710641462963,-154.675338,0.0001548,2]
[319293624,1710641462976,-151.0,0.0001548,2]
[319293625,1710641462986,-151.0,0.0001548,2]
[319293626,1710641462999,-154.072768,0.0001548,2]
[319293627,1710641463008,-151.0,0.0001548,2]
[319293628,1710641463021,-151.0,0.0001548,2]
[319293629,1710641463035,-151.0,0.0001548,2]
[319293630,1710641463045,-151.0,0.0001548,2]
[319293631,1710641463058,-151.0,0.0001548,2]
[319293632,1710641463069,-151.0,0.0001548,2]
[319293633,1710641463080,-151.0,0.0001548,2]
[319293634,1710641463091,-201.091497,0.0001548,2]
[319293635,1710641463102,-201.091497,0.0001548,2]
[319293636,1710641463112,-151.0,0.0001548,2]
[319293637,1710641463122,-151.0,0.0001548,2]
[319293638,1710641463132,-151.604833,0.0001548,2]
[319293639,1710641463143,-265.772558,0.0001548,2]
[319293640,1710641463155,-151.0,0.0001548,2]
[319293641,1710641463166,-151.0,0.0001548,2]
[319293642,1710641463177,-151.621402,0.0001548,2]
[319293643,1710641463190,-151.371089,0.0001548,2]
[319293644,1710641463200,-242.950149,0.0001548,2]
[319293645,1710641463210,-254.261093,0.0001548,2]
[319293646,1710641463219,-154.336474,0.0001548,2]
[319293647,1710641463228,-254.261093,0.0001548,2]
[319293648,1710641463239,-151.0,0.0001548,2]
[319293649,1710641463250,-155.448723,0.0001548,2]
[319293650,1710641463260,-1909.813246,0.0001548,2]
[319293651,1710641463270,-156.499567,0.0001548,2]
[319293652,1710641463279,-1909.813246,0.0001548,2]
[319293653,1710641463291,-151.0,0.0001548,2]
[319293654,1710641463303,-151.0,0.0001548,2]
[319293655,1710641463314,-500.0,0.00015488,2]
[319293656,1710641463324,-500.0,0.00015488,2]
[319293657,1710641463335,-280.24759893,0.00015493,2]
[319293658,1710641463346,-500.0,0.00015494,2]
[319293659,1710641463358,-500.0,0.00015494,2]
[319293660,1710641463369,-500.0,0.00015494,2]
[319293661,1710641463379,-500.0,0.00015494,2]
[319293662,1710641463391,-373.92,0.00015494,2]
[319293663,1710641463593,-520.35,0.00015494,2]
[319293664,1710641463604,-520.35,0.00015494,2]
[319293665,1710641463614,-1055.2,0.00015494,2]
[319293666,1710641463625,-1055.2,0.00015494,2]
[319293667,1710641463636,-764.47,0.00015494,2]
[319293668,1710641463645,-764.47,0.00015494,2]
[319293669,1710641463655,-1029.97,0.00015494,2]
[319293670,1710641463664,-1029.97,0.00015494,2]
[319293671,1710641463675,-500.0,0.00015494,2]
[319293672,1710641463684,-345.81007431,0.00015494,2]
[319293673,1710641463695,-2669.1,0.00015494,2]
[319293674,1710641463705,-2669.1,0.00015494,2]
[319293675,1710641463715,-3179.27,0.00015494,2]
[319293676,1710641463725,-3179.27,0.00015494,2]
[319293677,1710641463734,-961.58,0.00015494,2]
[319293678,1710641463744,-961.58,0.00015494,2]
[319293679,1710641463753,-6993.5,0.00015494,2]
[319293680,1710641463764,-6993.5,0.00015494,2]
[319293681,1710641463774,-2240.91,0.00015494,2]
[319293682,1710641463783,-2240.91,0.00015494,2]
[319293683,1710641463794,-1316.87,0.00015494,2]
[319293684,1710641463804,-1316.87,0.00015494,2]
[319293685,1710641463814,-837.2,0.00015494,2]
[319293686,1710641463824,-837.2,0.00015494,2]
[319293687,1710641463834,-500.0,0.00015494,2]
[319293688,1710641463843,-500.0,0.00015494,2]
[319293689,1710641463853,-500.0,0.00015494,2]
[319293690,1710641463862,-811.29,0.00015494,2]
[319293691,1710641463871,-500.0,0.00015494,2]
[319293692,1710641463880,-811.29,0.00015494,2]
[319293693,1710641463889,-1403.92,0.00015494,2]
[319293694,1710641463900,-1403.92,0.00015494,2]
[319293695,1710641463909,-500.0,0.00015494,2]
[319293696,1710641463919,-500.0,0.00015494,2]
[319293697,1710641463930,-500.0,0.00015494,2]
[319293698,1710641463939,-500.0,0.00015494,2]
[319293699,1710641463949,-500.0,0.00015494,2]
[319293700,1710641463958,-1369.94,0.00015494,2]
[319293701,1710641463967,-1369.94,0.00015494,2]
[319293702,1710641463976,-253.85564122,0.00015494,2]
[319293703,1710641463984,-932.6,0.00015494,2]
[319293704,1710641463994,-932.6,0.00015494,2]
[319293705,1710641464004,-500.0,0.00015494,2]
[319293706,1710641464013,-500.0,0.00015494,2]
[319293707,1710641464022,-548.85790547,0.00015494,2]
[319293708,1710641464031,-500.0,0.00015494,2]
[319293709,1710641464041,-500.0,0.00015494,2]
[319293710,1710641464051,-1227.85,0.00015494,2]
[319293711,1710641464060,-1227.85,0.00015494,2]
[319293712,1710641464070,-221.62484652,0.00015494,2]
[319293713,1710641464080,-664.62,0.00015494,2]
[319293714,1710641464090,-664.62,0.00015494,2]
[319293715,1710641464100,-1632.24,0.00015494,2]
[319293716,1710641464110,-1632.24,0.00015494,2]
[319293717,1710641464120,-111174.26335265,0.00015495,2]
[319293718,1710641464500,-31351.14024915,0.00015495,2]
[319293719,1710641464509,-15513.7070138,0.00015495,2]
[319293720,1710641464518,-32233.6988304,0.00015495,2]
[319293721,1710641464527,-6858.3448909,0.00015495,2]
[319293722,1710641464536,-8146.9540997,0.00015495,2]
[319293723,1710641464546,-7430.160642,0.00015495,2]
[319293724,1710641464555,-166070.0869314,0.00015495,2]
[319293725,1710641464565,-931.7115161,0.00015495,2]
[319293726,1710641464574,-432.07728346,0.00015495,2]
[319293727,1710641464584,-500.0,0.00015495,2]
[319293728,1710641464593,-174.60454533,0.00015496,2]
[319293729,1710641464602,-155.55550652,0.00015496,2]
[319293730,1710641464612,-230.44693586,0.00015496,2]
[319293731,1710641464621,-155.69818844,0.00015496,2]
[319293732,1710641464631,-155.66810936,0.00015496,2]
[319293733,1710641464640,-155.44511244,0.00015496,2]
[319293734,1710641464650,-1221.20649853,0.00015496,2]
[319293735,1710641464660,-220.3776993,0.00015496,2]
[319293736,1710641464669,-199.1190511,0.00015496,2]
[319293737,1710641464678,-217.06708636,0.00015496,2]
[319293738,1710641464688,-1634.50320802,0.00015496,2]
[319293739,1710641464699,-290.0615947,0.00015496,2]
[319293740,1710641464709,-633.87474151,0.00015496,2]
[319293741,1710641464718,-4344.504479,0.00015496,2]
[319293742,1710641464727,-155.69533176,0.00015496,2]
[319293743,1710641464736,-6213.51582172,0.00015496,2]
[319293744,1710641464745,-794.2643391,0.00015496,2]
[319293745,1710641464755,-484.77604832,0.00015496,2]
[319293746,1710641464764,-294.75051208,0.00015496,2]
[319293747,1710641464774,-500.0,0.00015496,2]
[319293748,1710641464784,-158.49497281,0.00015496,2]
[319293749,1710641464795,-1353.30237949,0.00015496,2]
[319293750,1710641464807,-184.12689899,0.00015496,2]
[319293751,1710641464817,-404.21026152,0.00015496,2]
[319293752,1710641464828,-155.32218103,0.00015496,2]
[319293753,1710641464838,-155.14319652,0.00015496,2]
[319293754,1710641464847,-1061.22011843,0.00015496,2]
[319293755,1710641464857,-1317.11031731,0.00015496,2]
[319293756,1710641464866,-156.51132444,0.00015496,2]
[319293757,1710641464875,-500.0,0.00015496,2]
[319293758,1710641464885,-520.35,0.00015496,2]
[319293759,1710641464894,-1055.2,0.00015496,2]
[319293760,1710641464903,-764.47,0.00015496,2]
[319293761,1710641464914,-1029.97,0.00015496,2]
[319293762,1710641464925,-2669.1,0.00015496,2]
[319293763,1710641464936,-2669.1,0.00015496,2]
[319293764,1710641464950,-2669.1,0.00015496,2]
[319293765,1710641464961,-2669.1,0.00015496,2]
[319293766,1710641464970,-2669.1,0.00015496,2]
[319293767,1710641464981,-2669.16,0.00015496,2]
[319293768,1710641464992,-3179.27,0.00015496,2]
[319293769,1710641465001,-3179.27,0.00015496,2]
[319293770,1710641465013,-3179.27,0.00015496,2]
[319293771,1710641465023,-3179.27,0.00015496,2]
[319293772,1710641465032,-3179.27,0.00015496,2]
[319293773,1710641465041,-3179.45,0.00015496,2]
[319293774,1710641465051,-961.58,0.00015496,2]
[319293775,1710641465061,-961.58,0.00015496,2]
[319293776,1710641465070,-961.58,0.00015496,2]
[319293777,1710641465080,-961.58,0.00015496,2]
[319293778,1710641465089,-6993.5,0.00015496,2]
[319293779,1710641465100,-961.58,0.00015496,2]
[319293780,1710641465109,-6993.5,0.00015496,2]
[319293781,1710641465119,-961.60386204,0.00015496,2]
[319293782,1710641465129,-6993.5,0.00015496,2]
[319293783,1710641465139,-6993.5,0.00015496,2]
[319293784,1710641465149,-6993.5,0.00015496,2]
[319293785,1710641465159,-6993.51623884,0.00015496,2]
[319293786,1710641465168,-2240.91,0.00015496,2]
[319293787,1710641465178,-2240.91,0.00015496,2]
[319293788,1710641465187,-2240.91,0.00015496,2]
[319293789,1710641465202,-2240.91,0.00015496,2]
[319293790,1710641465212,-2240.91,0.00015496,2]
[319293791,1710641465221,-2240.94755051,0.00015496,2]
[319293792,1710641465230,-1316.87,0.00015496,2]
[319293793,1710641465240,-837.2,0.00015496,2]
[319293794,1710641465249,-837.2,0.00015496,2]
[319293795,1710641465259,-837.2,0.00015496,2]
[319293796,1710641465268,-837.2,0.00015496,2]
[319293797,1710641465278,-837.2,0.00015496,2]
[319293798,1710641465288,-837.36,0.00015496,2]
[319293799,1710641465313,-500.0,0.00015496,2]
[319293800,1710641465323,-500.0,0.00015496,2]
[319293801,1710641465333,-811.29,0.00015496,2]
[319293802,1710641465343,-1403.92,0.00015496,2]
[319293803,1710641465352,-1403.92,0.00015496,2]
[319293804,1710641465362,-1403.92,0.00015496,2]
[319293805,1710641465372,-1403.92,0.00015496,2]
[319293806,1710641465383,-1403.92,0.00015496,2]
[319293807,1710641465392,-1403.975383,0.00015496,2]
[319293808,1710641465403,-394.30099559,0.00015496,2]
[319293809,1710641465413,-500.0,0.00015496,2]
[319293810,1710641465422,-500.0,0.00015496,2]
[319293811,1710641465432,-1369.94,0.00015496,2]
[319293812,1710641465445,-1369.94,0.00015496,2]
[319293813,1710641465454,-1369.94,0.00015496,2]
[319293814,1710641465462,-1369.94,0.00015496,2]
[319293815,1710641465471,-1369.94,0.00015496,2]
[319293816,1710641465480,-1370.04903672,0.00015496,2]
[319293817,1710641465489,-932.6,0.00015496,2]
[319293818,1710641465499,-500.0,0.00015496,2]
[319293819,1710641465508,-357.28,0.00015496,2]
[319293820,1710641465517,-543.90150815,0.00015496,2]
[319293821,1710641465526,-1227.85,0.00015496,2]
[319293822,1710641465536,-1227.85,0.00015496,2]
[319293823,1710641465545,-1227.85,0.00015496,2]
[319293824,1710641465554,-1227.85,0.00015496,2]
[319293825,1710641465564,-1227.85,0.00015496,2]
[319293826,1710641465574,-1227.95506239,0.00015496,2]
[319293827,1710641465584,-664.62,0.00015496,2]
[319293828,1710641465594,-664.62,0.00015496,2]
[319293829,1710641465603,-664.62,0.00015496,2]
[319293830,1710641465613,-664.62,0.00015496,2]
[319293831,1710641465622,-664.62,0.00015496,2]
[319293832,1710641465632,-664.80585656,0.00015496,2]
[319293833,1710641465642,-1632.24,0.00015496,2]
[319293834,1710641465652,-1632.24,0.00015496,2]
[319293835,1710641465662,-1632.24,0.00015496,2]
[319293836,1710641465672,-1632.24,0.00015496,2]
[319293837,1710641465681,-1632.24,0.00015496,2]
[319293838,1710641465694,-1632.25571407,0.00015496,2]
[319293839,1710641465703,-2302.21537281,0.00015497,2]
[319293840,1710641465713,-363.14065976,0.00015497,2]
[319293841,1710641465722,-373.60357031,0.00015497,2]
[319293842,1710641465731,-220000.0,0.00015497,2]
[319293843,1710641465741,-404.9844634,0.00015497,2]
[319293844,1710641465750,-151.0,0.00015497,2]
[319293845,1710641465760,-151.0,0.00015497,2]
[319293846,1710641465772,-154.002839,0.00015497,2]
[319293847,1710641465782,-151.0,0.00015497,2]
[319293848,1710641465792,-151.0,0.00015497,2]
[319293849,1710641465801,-151.0,0.00015497,2]
[319293850,1710641465811,-151.0,0.00015497,2]
[319293851,1710641465820,-152.774855,0.00015497,2]
[319293852,1710641465830,-151.0,0.00015497,2]
[319293853,1710641465840,-151.0,0.00015497,2]
[319293854,1710641465851,-500.0,0.00015497,2]
[319293855,1710641465860,-500.0,0.00015497,2]
[319293856,1710641465869,-500.0,0.00015497,2]
[319293857,1710641465878,-500.0,0.00015497,2]
[319293858,1710641465887,-210.28546594,0.00015497,2]
[319293859,1710641465897,-151.0,0.00015497,2]
[319293860,1710641465906,-520.35,0.00015497,2]
[319293861,1710641465915,-520.35,0.00015497,2]
[319293862,1710641465974,-520.35,0.00015497,2]
[319293863,1710641465984,-520.35,0.00015497,2]
[319293864,1710641465994,-520.5625344,0.00015497,2]
[319293865,1710641466003,-151.0,0.00015497,2]
[319293866,1710641466012,-1055.2,0.00015497,2]
[319293867,1710641466022,-1055.2,0.00015497,2]
[319293868,1710641466031,-1055.2,0.00015497,2]
[319293869,1710641466041,-1055.2,0.00015497,2]
[319293870,1710641466051,-1055.26175684,0.00015497,2]
[319293871,1710641466060,-151.0,0.00015497,2]
[319293872,1710641466070,-151.0,0.00015497,2]
[319293873,1710641466080,-214.599104,0.00015497,2]
[319293874,1710641466090,-151.0,0.00015497,2]
[319293875,1710641466100,-151.0,0.00015497,2]
[319293876,1710641466109,-151.0,0.00015497,2]
[319293877,1710641466119,-283.215155,0.00015497,2]
[319293878,1710641466128,-151.0,0.00015497,2]
[319293879,1710641466138,-162.553292,0.00015497,2]
[319293880,1710641466147,-162.553292,0.00015497,2]
[319293881,1710641466156,-764.47,0.00015497,2]
[319293882,1710641466165,-764.47,0.00015497,2]
[319293883,1710641466175,-764.47,0.00015497,2]
[319293884,1710641466185,-764.47,0.00015497,2]
[319293885,1710641466199,-764.63921038,0.00015497,2]
[319293886,1710641466208,-151.63272,0.00015497,2]
[319293887,1710641466218,-151.0,0.00015497,2]
[319293888,1710641466227,-151.0,0.00015497,2]
[319293889,1710641466237,-151.0,0.00015497,2]
[319293890,1710641466248,-151.0,0.00015497,2]
[319293891,1710641466258,-242.142895,0.00015497,2]
[319293892,1710641466267,-151.0,0.00015497,2]
[319293893,1710641466277,-155.704017,0.00015497,2]
[319293894,1710641466286,-1029.97,0.00015497,2]
[319293895,1710641466298,-1029.97,0.00015497,2]
[319293896,1710641466307,-1029.97,0.00015497,2]
[319293897,1710641466316,-1029.97,0.00015497,2]
[319293898,1710641466325,-1030.036717,0.00015497,2]
[319293899,1710641466334,-201.091497,0.00015497,2]
[319293900,1710641466344,-201.091497,0.00015497,2]
[319293901,1710641466354,-153.990602,0.00015497,2]
[319293902,1710641466363,-151.0,0.00015497,2]
[319293903,1710641466374,-151.0,0.00015497,2]
[319293904,1710641466384,-1316.87,0.00015497,2]
[319293905,1710641466394,-1316.87,0.00015497,2]
[319293906,1710641466404,-1316.87,0.00015497,2]
[319293907,1710641466413,-1316.87,0.00015497,2]
[319293908,1710641466423,-1316.90532518,0.00015497,2]
[319293909,1710641466433,-151.0,0.00015497,2]
[319293910,1710641466447,-500.0,0.00015497,2]
[319293911,1710641466456,-238.56548138,0.00015497,2]
[319293912,1710641466466,-500.0,0.00015497,2]
[319293913,1710641466476,-811.29,0.00015497,2]
[319293914,1710641466485,-811.29,0.00015497,2]
[319293915,1710641466494,-374.24564431,0.00015497,2]
[319293916,1710641466504,-811.29,0.00015497,2]
[319293917,1710641466513,-811.29,0.00015497,2]
[319293918,1710641466523,-811.47,0.00015497,2]
[319293919,1710641466532,-500.0,0.00015497,2]
[319293920,1710641466542,-500.0,0.00015497,2]
[319293921,1710641466551,-254.261093,0.00015497,2]
[319293922,1710641466561,-198.60913369,0.00015497,2]
[319293923,1710641466571,-254.261093,0.00015497,2]
[319293924,1710641466581,-151.0,0.00015497,2]
[319293925,1710641466591,-500.0,0.00015497,2]
[319293926,1710641466600,-500.0,0.00015497,2]
[319293927,1710641466610,-240.97375144,0.00015497,2]
[319293928,1710641466619,-932.6,0.00015497,2]
[319293929,1710641466629,-932.6,0.00015497,2]
[319293930,1710641466638,-932.6,0.00015497,2]
[319293931,1710641466647,-932.6,0.00015497,2]
[319293932,1710641466656,-932.71788727,0.00015497,2]
[319293933,1710641466666,-1909.813246,0.00015497,2]
[319293934,1710641466676,-1909.813246,0.00015497,2]
[319293935,1710641466685,-150.0,0.00015497,2]
[319293936,1710641466698,-151.0,0.00015497,2]
[319293937,1710641466708,-273.38120769,0.00015498,2]
[319293938,1710641466717,-394.41925954,0.00015498,2]
[319293939,1710641466727,-375.94535952,0.00015498,2]
[319293940,1710641466737,-1931.25816731,0.00015498,2]
[319293941,1710641466748,-265.53164377,0.00015498,2]
[319293942,1710641466757,-155.28985837,0.00015498,2]
[319293943,1710641466766,-1677756.80913024,0.00015498,2]
[319293944,1710641466775,-238.42635152,0.00015498,2]
[319293945,1710641466784,-408.07543191,0.00015498,5]
[319293946,1710641466793,-155.23516414,0.00015498,2]
[319293947,1710641466802,-222.87912994,0.00015498,5]
[319293948,1710641466811,-248.10498703,0.00015498,2]
[319293949,1710641466820,-155.35223061,0.00015498,2]
[319293950,1710641466829,-487.12593273,0.00015498,2]
[319293951,1710641466839,-209.67602005,0.00015498,2]
[319293952,1710641466847,-256.28333759,0.00015498,2]
[319293953,1710641466857,-155.49794433,0.00015498,2]
[319293954,1710641466866,-527.29473383,0.00015498,7]
[319293955,1710641466876,-200.0,0.00015498,2]
[319293956,1710641466884,-3046.60911697,0.00015498,2]
[319293957,1710641466894,-184.72118084,0.00015498,2]
[319293958,1710641466903,-67205.95879512,0.00015498,2]
[319293959,1710641466912,-468.34366984,0.00015498,2]
[319293960,1710641466921,-166.88888504,0.00015498,2]
[319293961,1710641466930,-151.0,0.00015498,2]
[319293962,1710641466939,-151.504571,0.00015498,2]
[319293963,1710641466951,-151.0,0.00015498,2]
[319293964,1710641466960,-151.0,0.00015498,2]